[Event "*** Titled Tuesday Blitz"]
[Site "Chess.com"]
[Date "2020.10.20"]
[Round "11"]
[White "Me_ch_an"]
[Black "doons21"]
[Result "0-1"]
[WhiteElo "2386"]
[BlackElo "2552"]
[TimeControl "180+1"]
[EndTime "12:08:34 PDT"]
[Termination "doons21 won by resignation"]

1. e4 {[%clk 0:03:00.9]} 1... e6 {[%clk 0:02:59.9]} 2. d4 {[%clk 0:03:00.8]}
2... d5 {[%clk 0:03:00.4]} 3. e5 {[%clk 0:03:01.3]} 3... c5 {[%clk 0:03:00.3]}
4. c3 {[%clk 0:03:01.8]} 4... Qb6 {[%clk 0:03:00.4]} 5. g3 {[%clk 0:03:00.8]}
5... Nc6 {[%clk 0:02:56.4]} 6. Ne2 {[%clk 0:03:00.8]} 6... f6 {[%clk 0:02:49.7]}
7. Nf4 {[%clk 0:03:00.2]} 7... cxd4 {[%clk 0:02:18.2]} 8. Qh5+ {[%clk 0:02:58]}
8... Ke7 {[%clk 0:02:18.6]} 9. Ng6+ {[%clk 0:02:54]} 9... hxg6 {[%clk
0:02:19.5]} 10. Qxh8 {[%clk 0:02:53.9]} 10... Kf7 {[%clk 0:02:20.2]} 11. exf6
{[%clk 0:02:39]} 11... Nxf6 {[%clk 0:02:13.8]} 12. Bg2 {[%clk 0:02:29.4]} 12...
e5 {[%clk 0:02:05.8]} 13. O-O {[%clk 0:02:23.8]} 13... d3 {[%clk 0:01:47.3]} 14.
Nd2 {[%clk 0:02:18.9]} 14... Bg4 {[%clk 0:01:39.7]} 15. Bf3 {[%clk 0:01:44.5]}
15... e4 {[%clk 0:01:21]} 16. Bxg4 {[%clk 0:01:13.5]} 16... Nxg4 {[%clk
0:01:21.9]} 17. Qh3 {[%clk 0:01:06.8]} 17... Nce5 {[%clk 0:01:19.1]} 18. Nb3
{[%clk 0:00:52.2]} 18... Nf3+ {[%clk 0:00:34.3]} 19. Kg2 {[%clk 0:00:50.9]}
19... Qe6 {[%clk 0:00:25.8]} 20. Nd4 {[%clk 0:00:42.6]} 20... Nxd4 {[%clk
0:00:21.2]} 21. cxd4 {[%clk 0:00:43.5]} 21... Be7 {[%clk 0:00:20.3]} 22. f3
{[%clk 0:00:38.9]} 22... Nf6 {[%clk 0:00:20.3]} 23. Qxe6+ {[%clk 0:00:34.8]}
23... Kxe6 {[%clk 0:00:21.2]} 24. Be3 {[%clk 0:00:28.4]} 24... Bd6 {[%clk
0:00:16]} 25. Rac1 {[%clk 0:00:28.1]} 25... a5 {[%clk 0:00:15.8]} 26. a3 {[%clk
0:00:20.2]} 26... Ra6 {[%clk 0:00:15.8]} 27. Kf2 {[%clk 0:00:15.4]} 27... Rb6
{[%clk 0:00:16.1]} 28. Rb1 {[%clk 0:00:14.1]} 28... Rb3 {[%clk 0:00:15.2]} 29.
Ke1 {[%clk 0:00:12.1]} 29... Bxa3 {[%clk 0:00:13.3]} 30. Kd2 {[%clk 0:00:12.4]}
30... Bxb2 {[%clk 0:00:11.7]} 31. h3 {[%clk 0:00:08.5]} 31... a4 {[%clk
0:00:11.4]} 32. g4 {[%clk 0:00:07.7]} 32... exf3 {[%clk 0:00:11.5]} 33. Rxf3
{[%clk 0:00:05.7]} 33... Ne4+ {[%clk 0:00:12.1]} 34. Ke1 {[%clk 0:00:04.9]}
34... a3 {[%clk 0:00:08.1]} 0-1

[Event "*** Titled Tuesday Blitz"]
[Site "Chess.com"]
[Date "2020.10.20"]
[Round "11"]
[White "picturesquecheck"]
[Black "bazar-wokzal"]
[Result "1/2-1/2"]
[WhiteElo "2169"]
[BlackElo "2488"]
[TimeControl "180+1"]
[EndTime "12:08:39 PDT"]
[Termination "Game drawn by repetition"]

1. e4 {[%clk 0:03:00.9]} 1... Nc6 {[%clk 0:02:58.4]} 2. Nf3 {[%clk 0:02:59.3]}
2... d5 {[%clk 0:02:58]} 3. exd5 {[%clk 0:02:58.6]} 3... Qxd5 {[%clk 0:02:58.9]}
4. Nc3 {[%clk 0:02:58.5]} 4... Qa5 {[%clk 0:02:58.8]} 5. Bc4 {[%clk 0:02:58.6]}
5... Bg4 {[%clk 0:02:58.3]} 6. O-O {[%clk 0:02:57.9]} 6... Nf6 {[%clk
0:02:52.3]} 7. h3 {[%clk 0:02:58.2]} 7... Bh5 {[%clk 0:02:46.9]} 8. Be2 {[%clk
0:02:56.4]} 8... O-O-O {[%clk 0:02:42.1]} 9. d3 {[%clk 0:02:55.6]} 9... e5
{[%clk 0:02:38.4]} 10. Qe1 {[%clk 0:02:53.6]} 10... Nb4 {[%clk 0:02:31.3]} 11.
Bd1 {[%clk 0:02:42.1]} 11... Bxf3 {[%clk 0:02:30.1]} 12. gxf3 {[%clk 0:02:41.5]}
12... Bd6 {[%clk 0:02:22.6]} 13. Ne4 {[%clk 0:02:39.3]} 13... Qd5 {[%clk
0:02:02.1]} 14. Nxd6+ {[%clk 0:02:26.9]} 14... Qxd6 {[%clk 0:02:00.1]} 15. Bg5
{[%clk 0:02:14.3]} 15... Nbd5 {[%clk 0:01:56.2]} 16. f4 {[%clk 0:01:44.1]} 16...
exf4 {[%clk 0:01:42]} 17. Bf3 {[%clk 0:01:41.1]} 17... Rhe8 {[%clk 0:01:40.9]}
18. Qa5 {[%clk 0:01:38.8]} 18... Qb6 {[%clk 0:01:22.3]} 19. Qxb6 {[%clk
0:01:36]} 19... axb6 {[%clk 0:01:20.3]} 20. Rae1 {[%clk 0:01:36.5]} 20... Re6
{[%clk 0:01:11]} 21. Bxd5 {[%clk 0:01:28.7]} 21... Rxd5 {[%clk 0:01:07.8]} 22.
Bxf4 {[%clk 0:01:28.7]} 22... Rf5 {[%clk 0:01:00]} 23. Bg3 {[%clk 0:01:27.5]}
23... Kd7 {[%clk 0:00:58.9]} 24. Kg2 {[%clk 0:01:26.6]} 24... b5 {[%clk
0:00:57.7]} 25. Re3 {[%clk 0:01:25.6]} 25... Rxe3 {[%clk 0:00:54.2]} 26. fxe3
{[%clk 0:01:26.5]} 26... Rxf1 {[%clk 0:00:54.5]} 27. Kxf1 {[%clk 0:01:24.9]}
27... Nd5 {[%clk 0:00:54.8]} 28. Ke2 {[%clk 0:01:17.4]} 28... Nb4 {[%clk
0:00:53.5]} 29. c3 {[%clk 0:01:16.2]} 29... Nxa2 {[%clk 0:00:49.4]} 30. Kd2
{[%clk 0:01:16.1]} 30... b4 {[%clk 0:00:49.8]} 31. Kc2 {[%clk 0:01:15.9]} 31...
c5 {[%clk 0:00:44.9]} 32. e4 {[%clk 0:01:06]} 32... b5 {[%clk 0:00:41.9]} 33.
Bf4 {[%clk 0:01:05.5]} 33... c4 {[%clk 0:00:39]} 34. Kb1 {[%clk 0:01:01.1]}
34... b3 {[%clk 0:00:31]} 35. d4 {[%clk 0:00:53.8]} 35... f6 {[%clk 0:00:18.4]}
36. h4 {[%clk 0:00:52.6]} 36... g6 {[%clk 0:00:17.4]} 37. Bh6 {[%clk 0:00:50.9]}
37... Ke6 {[%clk 0:00:17]} 38. Bf4 {[%clk 0:00:50.2]} 38... h5 {[%clk
0:00:16.5]} 39. d5+ {[%clk 0:00:49.4]} 39... Kd7 {[%clk 0:00:14.9]} 40. Be3
{[%clk 0:00:47.3]} 40... Ke7 {[%clk 0:00:14.7]} 41. Bc5+ {[%clk 0:00:45.5]}
41... Kf7 {[%clk 0:00:14.3]} 42. Bd4 {[%clk 0:00:44.7]} 42... g5 {[%clk
0:00:14.2]} 43. hxg5 {[%clk 0:00:37.6]} 43... fxg5 {[%clk 0:00:07.8]} 44. e5
{[%clk 0:00:37.9]} 44... h4 {[%clk 0:00:07.7]} 45. e6+ {[%clk 0:00:37.9]} 45...
Ke7 {[%clk 0:00:06.7]} 46. Bc5+ {[%clk 0:00:38.2]} 46... Kf6 {[%clk 0:00:07.2]}
47. Bd4+ {[%clk 0:00:36.3]} 47... Ke7 {[%clk 0:00:07.7]} 48. Bc5+ {[%clk
0:00:36.1]} 48... Kf6 {[%clk 0:00:07.6]} 49. Bd4+ {[%clk 0:00:35.9]} 49... Ke7
{[%clk 0:00:08.1]} 1/2-1/2

[Event "*** Titled Tuesday Blitz"]
[Site "Chess.com"]
[Date "2020.10.20"]
[Round "11"]
[White "KarstenHansch"]
[Black "Rubinstein_Akiba"]
[Result "1-0"]
[WhiteElo "2494"]
[BlackElo "2369"]
[TimeControl "180+1"]
[EndTime "12:08:40 PDT"]
[Termination "KarstenHansch won by checkmate"]

1. e4 {[%clk 0:03:00.9]} 1... c5 {[%clk 0:02:59.8]} 2. Nf3 {[%clk 0:02:59.6]}
2... d6 {[%clk 0:02:58.1]} 3. Bb5+ {[%clk 0:02:59.4]} 3... Bd7 {[%clk
0:02:55.6]} 4. Bxd7+ {[%clk 0:02:59.2]} 4... Nxd7 {[%clk 0:02:54.5]} 5. c3
{[%clk 0:02:55.7]} 5... Ngf6 {[%clk 0:02:54.3]} 6. Qe2 {[%clk 0:02:53.9]} 6...
e6 {[%clk 0:02:44.9]} 7. O-O {[%clk 0:02:53.8]} 7... Be7 {[%clk 0:02:43.1]} 8.
d4 {[%clk 0:02:53.9]} 8... cxd4 {[%clk 0:02:41.6]} 9. cxd4 {[%clk 0:02:53.9]}
9... O-O {[%clk 0:02:38.6]} 10. Bg5 {[%clk 0:02:52.3]} 10... d5 {[%clk
0:02:36.2]} 11. Bxf6 {[%clk 0:02:41.5]} 11... Nxf6 {[%clk 0:02:31.2]} 12. e5
{[%clk 0:02:42]} 12... Ne4 {[%clk 0:02:29.9]} 13. Nbd2 {[%clk 0:02:42.5]} 13...
Nxd2 {[%clk 0:02:29]} 14. Qxd2 {[%clk 0:02:42.9]} 14... Rc8 {[%clk 0:02:25.9]}
15. Rfc1 {[%clk 0:02:43.1]} 15... Qb6 {[%clk 0:02:24.5]} 16. Rxc8 {[%clk
0:02:41.6]} 16... Rxc8 {[%clk 0:02:25.4]} 17. Rc1 {[%clk 0:02:42.1]} 17... Rc7
{[%clk 0:02:16.1]} 18. Rxc7 {[%clk 0:02:39]} 18... Qxc7 {[%clk 0:02:17]} 19. Qc3
{[%clk 0:02:39.4]} 19... Qxc3 {[%clk 0:02:15.1]} 20. bxc3 {[%clk 0:02:40.3]}
20... Ba3 {[%clk 0:02:11.9]} 21. Nd2 {[%clk 0:02:29.1]} 21... Kf8 {[%clk
0:02:11.7]} 22. Kf1 {[%clk 0:02:29.1]} 22... Ke8 {[%clk 0:02:08.5]} 23. Ke2
{[%clk 0:02:29.4]} 23... Kd7 {[%clk 0:02:04.8]} 24. Kd3 {[%clk 0:02:29.6]} 24...
Kc6 {[%clk 0:02:03.9]} 25. Nf3 {[%clk 0:02:29.7]} 25... h6 {[%clk 0:02:04.5]}
26. g4 {[%clk 0:02:29.1]} 26... Be7 {[%clk 0:02:04.5]} 27. h4 {[%clk 0:02:28.8]}
27... Kb5 {[%clk 0:02:04.2]} 28. h5 {[%clk 0:02:26.8]} 28... Ka4 {[%clk
0:02:03.2]} 29. Kc2 {[%clk 0:02:25]} 29... Ka3 {[%clk 0:02:00.3]} 30. Kb1 {[%clk
0:02:25.1]} 30... b5 {[%clk 0:02:00.5]} 31. Ne1 {[%clk 0:02:22.9]} 31... Bh4
{[%clk 0:01:53.5]} 32. Nc2+ {[%clk 0:02:21.9]} 32... Ka4 {[%clk 0:01:53.3]} 33.
f3 {[%clk 0:02:22.4]} 33... a5 {[%clk 0:01:50]} 34. Kb2 {[%clk 0:02:21.4]} 34...
b4 {[%clk 0:01:45.6]} 35. a3 {[%clk 0:02:17.7]} 35... bxa3+ {[%clk 0:01:11.3]}
36. Nxa3 {[%clk 0:02:16.2]} 36... Be7 {[%clk 0:01:11.8]} 37. Nc2 {[%clk
0:02:14.7]} 37... Kb5 {[%clk 0:01:11.6]} 38. Ne3 {[%clk 0:02:14.7]} 38... Bg5
{[%clk 0:01:07.3]} 39. Ng2 {[%clk 0:02:12.4]} 39... Kc4 {[%clk 0:01:02]} 40. f4
{[%clk 0:02:12.9]} 40... Be7 {[%clk 0:01:02]} 41. Kc2 {[%clk 0:02:13.2]} 41...
a4 {[%clk 0:00:58.4]} 42. Ne3+ {[%clk 0:02:13.8]} 42... Kb5 {[%clk 0:00:59]} 43.
f5 {[%clk 0:02:14.2]} 43... Bg5 {[%clk 0:00:55]} 44. Nd1 {[%clk 0:02:14.2]}
44... Be7 {[%clk 0:00:48.2]} 45. Ne3 {[%clk 0:02:04.9]} 45... Bg5 {[%clk
0:00:45.4]} 46. Nd1 {[%clk 0:02:05]} 46... a3 {[%clk 0:00:36.9]} 47. Kb3 {[%clk
0:02:04.7]} 47... a2 {[%clk 0:00:37.1]} 48. Kxa2 {[%clk 0:02:04.2]} 48... Kc4
{[%clk 0:00:37.7]} 49. Kb2 {[%clk 0:02:04.4]} 49... Kd3 {[%clk 0:00:37.3]} 50.
Nf2+ {[%clk 0:01:55.6]} 50... Ke2 {[%clk 0:00:27.7]} 51. Nh3 {[%clk 0:01:55.4]}
51... Be7 {[%clk 0:00:23.1]} 52. fxe6 {[%clk 0:01:55.1]} 52... fxe6 {[%clk
0:00:22.8]} 53. Nf4+ {[%clk 0:01:55.4]} 53... Kf3 {[%clk 0:00:22.4]} 54. Nxe6
{[%clk 0:01:55.7]} 54... Kxg4 {[%clk 0:00:22.9]} 55. Nxg7 {[%clk 0:01:56.1]}
55... Kg5 {[%clk 0:00:17.6]} 56. c4 {[%clk 0:01:54.3]} 56... dxc4 {[%clk
0:00:16.8]} 57. Kc3 {[%clk 0:01:53]} 57... Kf4 {[%clk 0:00:16.1]} 58. Kxc4
{[%clk 0:01:53.1]} 58... Ke4 {[%clk 0:00:16]} 59. Ne6 {[%clk 0:01:49.7]} 59...
Kf5 {[%clk 0:00:13.3]} 60. Nc7 {[%clk 0:01:48.4]} 60... Ke4 {[%clk 0:00:13.1]}
61. Nd5 {[%clk 0:01:48]} 61... Bd8 {[%clk 0:00:12.8]} 62. Nf6+ {[%clk
0:01:48.3]} 62... Kf5 {[%clk 0:00:12.9]} 63. Ng8 {[%clk 0:01:46.1]} 63... Bg5
{[%clk 0:00:11.4]} 64. Kd5 {[%clk 0:01:45.4]} 64... Kg4 {[%clk 0:00:11.1]} 65.
e6 {[%clk 0:01:45.5]} 65... Kxh5 {[%clk 0:00:11.4]} 66. e7 {[%clk 0:01:45.8]}
66... Bxe7 {[%clk 0:00:12]} 67. Nxe7 {[%clk 0:01:46.7]} 67... Kg4 {[%clk
0:00:12.4]} 68. Ke5 {[%clk 0:01:47.1]} 68... h5 {[%clk 0:00:12.7]} 69. Nf5
{[%clk 0:01:47.4]} 69... Kg5 {[%clk 0:00:13.2]} 70. d5 {[%clk 0:01:47.3]} 70...
Kg4 {[%clk 0:00:11.2]} 71. d6 {[%clk 0:01:47.3]} 71... h4 {[%clk 0:00:12.1]} 72.
Nxh4 {[%clk 0:01:47.1]} 72... Kxh4 {[%clk 0:00:12.4]} 73. d7 {[%clk 0:01:48]}
73... Kg3 {[%clk 0:00:13.3]} 74. d8=Q {[%clk 0:01:48.9]} 74... Kf3 {[%clk
0:00:14.2]} 75. Qg5 {[%clk 0:01:48.9]} 75... Ke2 {[%clk 0:00:13.5]} 76. Qg3
{[%clk 0:01:48.6]} 76... Kf1 {[%clk 0:00:13.2]} 77. Qh2 {[%clk 0:01:48.7]} 77...
Ke1 {[%clk 0:00:14.1]} 78. Ke4 {[%clk 0:01:49.2]} 78... Kf1 {[%clk 0:00:15]} 79.
Ke3 {[%clk 0:01:49.5]} 79... Ke1 {[%clk 0:00:15.7]} 80. Qg1# {[%clk 0:01:49.9]}
1-0

[Event "*** Titled Tuesday Blitz"]
[Site "Chess.com"]
[Date "2020.10.20"]
[Round "11"]
[White "mr65"]
[Black "profofchess"]
[Result "1-0"]
[WhiteElo "2187"]
[BlackElo "2339"]
[TimeControl "180+1"]
[EndTime "12:08:42 PDT"]
[Termination "mr65 won by resignation"]

1. e4 {[%clk 0:03:00.9]} 1... e6 {[%clk 0:02:59.7]} 2. d4 {[%clk 0:03:00.1]}
2... d5 {[%clk 0:02:56.7]} 3. Nc3 {[%clk 0:03:00]} 3... Bb4 {[%clk 0:02:56.6]}
4. e5 {[%clk 0:02:59.4]} 4... c5 {[%clk 0:02:56.5]} 5. a3 {[%clk 0:02:59.3]}
5... Bxc3+ {[%clk 0:02:56.7]} 6. bxc3 {[%clk 0:02:59.4]} 6... Ne7 {[%clk
0:02:57.6]} 7. a4 {[%clk 0:02:55.8]} 7... Qa5 {[%clk 0:02:55.6]} 8. Qd2 {[%clk
0:02:54.8]} 8... b6 {[%clk 0:02:53.9]} 9. Bb5+ {[%clk 0:02:52.5]} 9... Bd7
{[%clk 0:02:53.4]} 10. Bd3 {[%clk 0:02:50.3]} 10... Nbc6 {[%clk 0:02:49.4]} 11.
Nf3 {[%clk 0:02:48.5]} 11... Bc8 {[%clk 0:02:38]} 12. O-O {[%clk 0:02:42.6]}
12... Ba6 {[%clk 0:02:38]} 13. Ba3 {[%clk 0:02:36.1]} 13... cxd4 {[%clk
0:02:24.2]} 14. Bxa6 {[%clk 0:02:27.4]} 14... Qxa6 {[%clk 0:02:10.1]} 15. cxd4
{[%clk 0:02:25.3]} 15... Qc4 {[%clk 0:02:02.8]} 16. Bxe7 {[%clk 0:02:20.4]}
16... Nxe7 {[%clk 0:02:01.2]} 17. a5 {[%clk 0:02:20.5]} 17... b5 {[%clk
0:02:00.1]} 18. a6 {[%clk 0:02:19.2]} 18... O-O {[%clk 0:01:50.8]} 19. Rfb1
{[%clk 0:02:18.5]} 19... Rab8 {[%clk 0:01:48.4]} 20. Rb4 {[%clk 0:02:13.5]}
20... Qc6 {[%clk 0:01:31.2]} 21. Qd3 {[%clk 0:02:00.3]} 21... Rb6 {[%clk
0:01:27.1]} 22. g3 {[%clk 0:01:43.8]} 22... Rc8 {[%clk 0:01:14.4]} 23. Rab1
{[%clk 0:01:36]} 23... Rcb8 {[%clk 0:00:51.5]} 24. Nd2 {[%clk 0:01:23]} 24... h6
{[%clk 0:00:48.3]} 25. h4 {[%clk 0:01:09.6]} 25... Qd7 {[%clk 0:00:40.5]} 26.
Nb3 {[%clk 0:01:02.8]} 26... Nc6 {[%clk 0:00:34]} 27. Nc5 {[%clk 0:01:00.1]}
27... Nxb4 {[%clk 0:00:32.2]} 28. Nxd7 {[%clk 0:00:59.5]} 28... Nxd3 {[%clk
0:00:32.2]} 29. Nxb6 {[%clk 0:00:50.4]} 29... Rxb6 {[%clk 0:00:20.4]} 30. cxd3
{[%clk 0:00:49.4]} 30... b4 {[%clk 0:00:15.6]} 31. Kf1 {[%clk 0:00:48.6]} 31...
Kf8 {[%clk 0:00:13.7]} 32. Ke2 {[%clk 0:00:48.3]} 32... Ke7 {[%clk 0:00:12.1]}
33. Kd2 {[%clk 0:00:48.2]} 33... b3 {[%clk 0:00:09.4]} 34. Kc3 {[%clk
0:00:46.8]} 34... Kd7 {[%clk 0:00:09]} 35. Rxb3 {[%clk 0:00:45.2]} 35... Rxb3+
{[%clk 0:00:09]} 36. Kxb3 {[%clk 0:00:45]} 36... Kc6 {[%clk 0:00:09.6]} 37. Kb4
{[%clk 0:00:44.3]} 37... Kb6 {[%clk 0:00:09.8]} 38. h5 {[%clk 0:00:38.8]} 38...
Kxa6 {[%clk 0:00:10.1]} 39. g4 {[%clk 0:00:36.3]} 39... Kb6 {[%clk 0:00:10.1]}
40. f4 {[%clk 0:00:35.8]} 40... a5+ {[%clk 0:00:07]} 41. Ka4 {[%clk 0:00:25.6]}
41... f6 {[%clk 0:00:03.3]} 42. exf6 {[%clk 0:00:23.5]} 42... gxf6 {[%clk
0:00:03.6]} 43. g5 {[%clk 0:00:23.7]} 43... fxg5 {[%clk 0:00:03.7]} 44. fxg5
{[%clk 0:00:23.4]} 44... hxg5 {[%clk 0:00:03.9]} 45. h6 {[%clk 0:00:23.2]} 45...
g4 {[%clk 0:00:04.4]} 46. h7 {[%clk 0:00:23.2]} 46... g3 {[%clk 0:00:04.9]} 47.
h8=Q {[%clk 0:00:22.7]} 47... g2 {[%clk 0:00:05.3]} 48. Qg7 {[%clk 0:00:22.4]}
1-0

[Event "*** Titled Tuesday Blitz"]
[Site "Chess.com"]
[Date "2020.10.20"]
[Round "11"]
[White "gusmaster2262"]
[Black "zurzan"]
[Result "1-0"]
[WhiteElo "2175"]
[BlackElo "2001"]
[TimeControl "180+1"]
[EndTime "12:08:42 PDT"]
[Termination "gusmaster2262 won by resignation"]

1. e4 {[%clk 0:03:00.9]} 1... Nf6 {[%clk 0:02:59.5]} 2. e5 {[%clk 0:02:59]} 2...
Nd5 {[%clk 0:02:59.5]} 3. d4 {[%clk 0:02:59.7]} 3... d6 {[%clk 0:02:59.1]} 4.
Nf3 {[%clk 0:03:00.2]} 4... g6 {[%clk 0:02:58.8]} 5. Be2 {[%clk 0:03:00.1]} 5...
Bg7 {[%clk 0:02:58.8]} 6. O-O {[%clk 0:03:00.2]} 6... O-O {[%clk 0:02:58.9]} 7.
c4 {[%clk 0:02:56.5]} 7... Nb6 {[%clk 0:02:58.1]} 8. exd6 {[%clk 0:02:56.9]}
8... cxd6 {[%clk 0:02:58.5]} 9. Nc3 {[%clk 0:02:57.3]} 9... Nc6 {[%clk
0:02:57.9]} 10. h3 {[%clk 0:02:54]} 10... d5 {[%clk 0:02:43.1]} 11. c5 {[%clk
0:02:53.1]} 11... Nc4 {[%clk 0:02:42.3]} 12. b3 {[%clk 0:02:53.1]} 12... N4a5
{[%clk 0:02:41.7]} 13. Be3 {[%clk 0:02:46.7]} 13... b6 {[%clk 0:02:40.5]} 14.
cxb6 {[%clk 0:02:39.6]} 14... axb6 {[%clk 0:02:40.2]} 15. Rc1 {[%clk 0:02:34.4]}
15... Ba6 {[%clk 0:02:35.5]} 16. Bxa6 {[%clk 0:02:24.9]} 16... Rxa6 {[%clk
0:02:35.7]} 17. Qd3 {[%clk 0:02:22]} 17... Ra8 {[%clk 0:02:31.7]} 18. Qb5 {[%clk
0:02:17.3]} 18... e6 {[%clk 0:02:25.4]} 19. Na4 {[%clk 0:02:12]} 19... Rb8
{[%clk 0:02:10.8]} 20. Rxc6 {[%clk 0:01:55.5]} 20... Nxc6 {[%clk 0:02:10]} 21.
Qxc6 {[%clk 0:01:54.9]} 21... b5 {[%clk 0:02:09.5]} 22. Nc5 {[%clk 0:01:48.9]}
22... Qc8 {[%clk 0:01:56.9]} 23. Qxc8 {[%clk 0:01:31.5]} 23... Rfxc8 {[%clk
0:01:56.4]} 24. Rc1 {[%clk 0:01:26.4]} 24... Ra8 {[%clk 0:01:54.6]} 25. Rc2
{[%clk 0:01:26.2]} 25... Bf8 {[%clk 0:01:31.9]} 26. Ne5 {[%clk 0:01:20.2]} 26...
Bd6 {[%clk 0:01:24.5]} 27. Ned7 {[%clk 0:01:17]} 27... Kg7 {[%clk 0:01:17.1]}
28. Nb6 {[%clk 0:01:15.5]} 28... Bxc5 {[%clk 0:01:14.7]} 29. dxc5 {[%clk
0:01:11]} 29... e5 {[%clk 0:01:06]} 30. Nxa8 {[%clk 0:01:07.3]} 30... Rxa8
{[%clk 0:01:05]} 31. c6 {[%clk 0:00:59.1]} 31... d4 {[%clk 0:01:05.2]} 32. c7
{[%clk 0:00:49.8]} 32... Rc8 {[%clk 0:01:04.8]} 33. Bd2 {[%clk 0:00:48.4]} 33...
Kf8 {[%clk 0:00:55.7]} 34. Bb4+ {[%clk 0:00:46.7]} 34... Ke8 {[%clk 0:00:55.8]}
35. Kf1 {[%clk 0:00:39.5]} 35... Kd7 {[%clk 0:00:55.4]} 36. Ba5 {[%clk
0:00:39.2]} 36... f5 {[%clk 0:00:54.6]} 37. f3 {[%clk 0:00:38]} 37... Kd6 {[%clk
0:00:50.2]} 38. Ke2 {[%clk 0:00:37.2]} 38... Kd5 {[%clk 0:00:50.3]} 39. b4
{[%clk 0:00:35.2]} 39... e4 {[%clk 0:00:48.8]} 40. Rc5+ {[%clk 0:00:34.2]} 40...
Ke6 {[%clk 0:00:48.8]} 41. Rxb5 {[%clk 0:00:33.8]} 41... d3+ {[%clk 0:00:40.8]}
42. Kd2 {[%clk 0:00:32.7]} 42... h5 {[%clk 0:00:37.4]} 43. Rb8 {[%clk 0:00:32]}
43... Kd7 {[%clk 0:00:34.9]} 44. Rxc8 {[%clk 0:00:30.4]} 44... Kxc8 {[%clk
0:00:35.8]} 45. b5 {[%clk 0:00:30.3]} 45... Kb7 {[%clk 0:00:34.8]} 46. b6 {[%clk
0:00:30.1]} 46... g5 {[%clk 0:00:33.9]} 47. a4 {[%clk 0:00:28.5]} 47... g4
{[%clk 0:00:28.4]} 48. fxe4 {[%clk 0:00:26.3]} 48... fxe4 {[%clk 0:00:22.1]} 49.
Ke3 {[%clk 0:00:26.1]} 49... gxh3 {[%clk 0:00:19]} 50. gxh3 {[%clk 0:00:25.3]}
1-0

[Event "*** Titled Tuesday Blitz"]
[Site "Chess.com"]
[Date "2020.10.20"]
[Round "11"]
[White "Cocaino74"]
[Black "oogee"]
[Result "0-1"]
[WhiteElo "2347"]
[BlackElo "2216"]
[TimeControl "180+1"]
[EndTime "12:08:43 PDT"]
[Termination "oogee won by resignation"]

1. a4 {[%clk 0:02:57.9]} 1... e5 {[%clk 0:02:54.1]} 2. Nf3 {[%clk 0:02:54]} 2...
e4 {[%clk 0:02:52.4]} 3. Nd4 {[%clk 0:02:53.5]} 3... Bc5 {[%clk 0:02:48.3]} 4.
Nb3 {[%clk 0:02:51.9]} 4... Be7 {[%clk 0:02:46.9]} 5. e3 {[%clk 0:02:45.3]} 5...
Nf6 {[%clk 0:02:43.8]} 6. d3 {[%clk 0:02:44.8]} 6... d5 {[%clk 0:02:38.1]} 7.
Nc3 {[%clk 0:02:42.7]} 7... exd3 {[%clk 0:02:32.2]} 8. Bxd3 {[%clk 0:02:37.5]}
8... c5 {[%clk 0:02:31.2]} 9. Bb5+ {[%clk 0:02:31.4]} 9... Nc6 {[%clk
0:02:29.4]} 10. a5 {[%clk 0:02:17.1]} 10... O-O {[%clk 0:02:23.7]} 11. a6 {[%clk
0:02:16.7]} 11... Ne5 {[%clk 0:02:04.1]} 12. O-O {[%clk 0:02:09.6]} 12... b6
{[%clk 0:01:36.3]} 13. f4 {[%clk 0:02:04]} 13... Bg4 {[%clk 0:01:07.3]} 14. fxe5
{[%clk 0:01:54.8]} 14... Bxd1 {[%clk 0:01:06]} 15. exf6 {[%clk 0:01:55.4]} 15...
Bxc2 {[%clk 0:01:00.1]} 16. fxe7 {[%clk 0:01:45.7]} 16... Qxe7 {[%clk 0:01:01]}
17. Ra3 {[%clk 0:01:44.6]} 17... Rad8 {[%clk 0:00:47.9]} 18. Bc6 {[%clk
0:01:37.9]} 18... d4 {[%clk 0:00:41.7]} 19. Nd5 {[%clk 0:01:35.8]} 19... Qd6
{[%clk 0:00:38]} 20. Bb7 {[%clk 0:01:33.5]} 20... Rfe8 {[%clk 0:00:27.6]} 21.
exd4 {[%clk 0:01:32.3]} 21... cxd4 {[%clk 0:00:23.3]} 22. Bf4 {[%clk 0:01:13.6]}
22... Qg6 {[%clk 0:00:21]} 23. Nxd4 {[%clk 0:01:11.3]} 23... Be4 {[%clk
0:00:19.6]} 24. Rg3 {[%clk 0:01:10.7]} 24... Bxd5 {[%clk 0:00:09.5]} 25. Rxg6
{[%clk 0:01:06.5]} 25... hxg6 {[%clk 0:00:10.4]} 26. Bc7 {[%clk 0:00:51.7]}
26... Rd7 {[%clk 0:00:10]} 27. Bxd5 {[%clk 0:00:51.1]} 27... Rxd5 {[%clk
0:00:09.5]} 28. Nc6 {[%clk 0:00:49.6]} 28... Rc5 {[%clk 0:00:09.1]} 29. Nxa7
{[%clk 0:00:46.1]} 29... Ra8 {[%clk 0:00:07.8]} 30. Nb5 {[%clk 0:00:47]} 30...
Rxb5 {[%clk 0:00:07.6]} 31. Ra1 {[%clk 0:00:44.5]} 31... Rxb2 {[%clk 0:00:07.3]}
32. a7 {[%clk 0:00:45]} 32... b5 {[%clk 0:00:05.3]} 33. Be5 {[%clk 0:00:45.3]}
33... Re2 {[%clk 0:00:04.7]} 34. Bd6 {[%clk 0:00:45.5]} 34... Re6 {[%clk
0:00:03.8]} 35. Bc7 {[%clk 0:00:44.2]} 35... Re7 {[%clk 0:00:04]} 36. Bd6 {[%clk
0:00:44.4]} 36... Rexa7 {[%clk 0:00:04]} 37. Rb1 {[%clk 0:00:43.1]} 37... Rb7
{[%clk 0:00:04.2]} 38. Kf2 {[%clk 0:00:41.8]} 38... Rc8 {[%clk 0:00:04.8]} 39.
Bf4 {[%clk 0:00:42.5]} 39... Rc2+ {[%clk 0:00:05]} 40. Kg3 {[%clk 0:00:43.4]}
40... b4 {[%clk 0:00:05.4]} 41. Kg4 {[%clk 0:00:44]} 41... b3 {[%clk 0:00:05.7]}
42. Be3 {[%clk 0:00:44.9]} 42... b2 {[%clk 0:00:05.9]} 43. Bd4 {[%clk
0:00:45.7]} 43... Rb4 {[%clk 0:00:05.9]} 44. Kf3 {[%clk 0:00:45.8]} 44... Rxd4
{[%clk 0:00:06]} 45. Re1 {[%clk 0:00:46.5]} 45... Rc1 {[%clk 0:00:05.8]} 46.
Re8+ {[%clk 0:00:47.4]} 46... Kh7 {[%clk 0:00:05.9]} 47. Rb8 {[%clk 0:00:47.7]}
47... b1=Q {[%clk 0:00:05.5]} 48. Rxb1 {[%clk 0:00:48.6]} 48... Rxb1 {[%clk
0:00:05.9]} 49. Ke3 {[%clk 0:00:49.5]} 49... Rdb4 {[%clk 0:00:04.3]} 50. g4
{[%clk 0:00:50.4]} 50... R1b3+ {[%clk 0:00:04.6]} 51. Kd2 {[%clk 0:00:51.3]}
51... Ra4 {[%clk 0:00:04.9]} 52. Kc2 {[%clk 0:00:52.2]} 52... Rh3 {[%clk
0:00:05.2]} 53. Kc1 {[%clk 0:00:50.6]} 53... Rxg4 {[%clk 0:00:06.1]} 54. Kb1
{[%clk 0:00:51.5]} 54... Rg2 {[%clk 0:00:06.4]} 0-1